[Event "FIDE Grand Swiss 2023"]
[Site "Villa Marina, Douglas, Isle of Man, Isle Of Man"]
[Date "2023.10.29"]
[Round "5.19"]
[White "Kuybokarov, Temur"]
[Black "Bacrot, Etienne"]
[Result "1/2-1/2"]
[TimeControl "40/90 + 30 + 30s/move"]
[WhiteFideId "14203049"]
[BlackFideId "605506"]
[WhiteElo "2584"]
[BlackElo "2669"]

1. e4 {[%clk 01:40:21]} {[%emt 00:00:38]} c5 {[%clk 01:40:55]} {[%emt
00:00:06]} 2. Nf3 {[%clk 01:40:44]} {[%emt 00:00:07]} e6 {[%clk 01:41:19]}
{[%emt 00:00:05]} 3. d4 {[%clk 01:40:51]} {[%emt 00:00:23]} cxd4 {[%clk
01:41:43]} {[%emt 00:00:07]} 4. Nxd4 {[%clk 01:41:14]} {[%emt 00:00:07]} Nc6
{[%clk 01:42:05]} {[%emt 00:00:07]} 5. Nc3 {[%clk 01:41:17]} {[%emt 00:00:27]}
Qc7 {[%clk 01:42:15]} {[%emt 00:00:20]} 6. Be3 {[%clk 01:40:50]} {[%emt
00:00:57]} a6 {[%clk 01:42:26]} {[%emt 00:00:19]} 7. Qf3 {[%clk 01:40:49]}
{[%emt 00:00:31]} b5 {[%clk 01:41:11]} {[%emt 00:01:45]} 8. O-O-O {[%clk
01:34:48]} {[%emt 00:06:31]} Bb7 {[%clk 01:19:44]} {[%emt 00:21:58]} 9. Nxc6
{[%clk 01:07:26]} {[%emt 00:27:53]} Qxc6 {[%clk 01:17:22]} {[%emt 00:02:51]} 10.
Bd3 {[%clk 01:00:46]} {[%emt 00:07:10]} b4 {[%clk 01:09:03]} {[%emt 00:08:50]}
11. Ne2 {[%clk 01:00:36]} {[%emt 00:00:40]} Nf6 {[%clk 01:09:28]} {[%emt
00:00:04]} 12. Nd4 {[%clk 00:52:25]} {[%emt 00:08:42]} Qc7 {[%clk 01:06:39]}
{[%emt 00:03:18]} 13. Bf4 {[%clk 00:49:46]} {[%emt 00:03:10]} d6 {[%clk
00:54:58]} {[%emt 00:12:10]} 14. Qe2 {[%clk 00:46:41]} {[%emt 00:03:35]} e5
{[%clk 00:48:35]} {[%emt 00:06:53]} 15. Bg3 {[%clk 00:46:35]} {[%emt 00:00:37]}
g6 {[%clk 00:48:57]} {[%emt 00:00:08]} 16. Nb3 {[%clk 00:35:16]} {[%emt
00:11:49]} Bh6+ {[%clk 00:47:50]} {[%emt 00:01:37]} 17. Kb1 {[%clk 00:35:32]}
{[%emt 00:00:14]} O-O {[%clk 00:48:07]} {[%emt 00:00:12]} 18. h4 {[%clk
00:33:15]} {[%emt 00:02:48]} Nh5 {[%clk 00:44:53]} {[%emt 00:03:44]} 19. Bh2
{[%clk 00:32:38]} {[%emt 00:01:06]} a5 {[%clk 00:45:13]} {[%emt 00:00:11]} 20.
Nd2 {[%clk 00:26:29]} {[%emt 00:06:39]} a4 {[%clk 00:43:06]} {[%emt 00:02:38]}
21. Nc4 {[%clk 00:26:01]} {[%emt 00:00:58]} Rfc8 {[%clk 00:42:55]} {[%emt
00:00:40]} 22. f3 {[%clk 00:21:27]} {[%emt 00:05:04]} Ba6 {[%clk 00:31:14]}
{[%emt 00:12:11]} 23. Nxe5 {[%clk 00:13:40]} {[%emt 00:08:17]} b3 {[%clk
00:29:24]} {[%emt 00:02:20]} 24. c3 {[%clk 00:13:44]} {[%emt 00:00:26]} bxa2+
{[%clk 00:28:39]} {[%emt 00:01:15]} 25. Ka1 {[%clk 00:13:28]} {[%emt 00:00:46]}
Bxd3 {[%clk 00:25:52]} {[%emt 00:03:17]} 26. Nxd3 {[%clk 00:13:51]} {[%emt
00:00:08]} a3 {[%clk 00:26:18]} {[%emt 00:00:04]} 27. Nb4 {[%clk 00:12:39]}
{[%emt 00:01:43]} Bg7 {[%clk 00:21:05]} {[%emt 00:05:43]} 28. Nd5 {[%clk
00:10:14]} {[%emt 00:02:54]} axb2+ {[%clk 00:19:34]} {[%emt 00:02:01]} 29. Qxb2
{[%clk 00:10:38]} {[%emt 00:00:06]} Qa5 {[%clk 00:19:59]} {[%emt 00:00:04]} 30.
Bxd6 {[%clk 00:10:09]} {[%emt 00:01:00]} Bxc3 {[%clk 00:08:08]} {[%emt
00:12:21]} 31. Nxc3 {[%clk 00:10:26]} {[%emt 00:00:13]} Qxc3 {[%clk 00:08:35]}
{[%emt 00:00:03]} 32. Qxc3 {[%clk 00:10:35]} {[%emt 00:00:21]} Rxc3 {[%clk
00:09:00]} {[%emt 00:00:04]} 33. Rd2 {[%clk 00:08:45]} {[%emt 00:02:20]} f6
{[%clk 00:09:00]} {[%emt 00:00:31]} 34. Rhd1 {[%clk 00:08:43]} {[%emt
00:00:32]} Ng7 {[%clk 00:09:14]} {[%emt 00:00:16]} 35. Be7 {[%clk 00:07:01]}
{[%emt 00:02:11]} Ne8 {[%clk 00:07:00]} {[%emt 00:02:45]} 36. Rd8 {[%clk
00:06:15]} {[%emt 00:01:16]} Rxd8 {[%clk 00:05:40]} {[%emt 00:01:51]} 37. Rxd8
{[%clk 00:06:35]} {[%emt 00:00:09]} Kf7 {[%clk 00:04:59]} {[%emt 00:01:10]} 38.
Bb4 {[%clk 00:06:58]} {[%emt 00:00:08]} Rc2 {[%clk 00:05:05]} {[%emt 00:00:24]}
39. Rd7+ {[%clk 00:06:51]} {[%emt 00:00:37]} Kg8 {[%clk 00:05:32]} {[%emt
00:00:02]} 40. Rd2 {[%clk 00:06:52]} {[%emt 00:00:29]} Rxd2 {[%clk 00:04:05]}
{[%emt 00:01:57]} 41. Bxd2 {[%clk 00:07:18]} {[%emt 00:00:05]} f5 {[%clk
00:00:36]} {[%emt 00:03:59]} 42. exf5 {[%clk 00:06:10]} {[%emt 00:01:38]} gxf5
{[%clk 00:00:41]} {[%emt 00:00:24]} 43. Kxa2 {[%clk 00:06:28]} {[%emt
00:00:13]} Kf7 {[%clk 00:48:09]} {[%emt 00:03:01]} 44. Kb3 {[%clk 00:56:51]}
{[%emt 00:00:09]} h5 {[%clk 00:47:56]} {[%emt 00:00:42]} 45. Kc4 {[%clk
00:57:05]} {[%emt 00:00:16]} Ke6 {[%clk 00:48:21]} {[%emt 00:00:05]} 46. Kd4
{[%clk 00:54:15]} {[%emt 00:03:20]} Nc7 {[%clk 00:47:16]} {[%emt 00:01:35]} 47.
Bf4 {[%clk 00:54:21]} {[%emt 00:00:24]} Nd5 {[%clk 00:47:22]} {[%emt 00:00:23]}
48. Bb8 {[%clk 00:54:01]} {[%emt 00:00:51]} Nb4 {[%clk 00:46:39]} {[%emt
00:01:12]} 49. Bg3 {[%clk 00:53:19]} {[%emt 00:01:11]} Nd5 {[%clk 00:46:42]}
{[%emt 00:00:28]} 50. Ke4 {[%clk 00:53:03]} {[%emt 00:00:13]} Ke5+ {[%clk
00:46:42]} 1/2-1/2

[Event "FIDE Grand Swiss 2023"]
[Site "Villa Marina, Douglas, Isle of Man, Isle Of Man"]
[Date "2023.10.29"]
[Round "5.36"]
[White "Shirov, Alexei"]
[Black "Amar, Elham"]
[Result "1-0"]
[TimeControl "40/90 + 30 + 30s/move"]
[WhiteFideId "2209390"]
[BlackFideId "1533533"]
[WhiteElo "2655"]
[BlackElo "2568"]

1. e4 {[%clk 01:40:57]} {[%emt 00:00:01]} c6 {[%clk 01:40:55]} {[%emt
00:00:06]} 2. d4 {[%clk 01:41:22]} {[%emt 00:00:05]} d5 {[%clk 01:41:20]}
{[%emt 00:00:05]} 3. e5 {[%clk 01:41:48]} {[%emt 00:00:04]} Bf5 {[%clk
01:41:46]} {[%emt 00:00:04]} 4. h4 {[%clk 01:42:05]} {[%emt 00:00:12]} h5
{[%clk 01:42:09]} {[%emt 00:00:08]} 5. Bd3 {[%clk 01:42:19]} {[%emt 00:00:15]}
Bxd3 {[%clk 01:42:32]} {[%emt 00:00:08]} 6. Qxd3 {[%clk 01:42:43]} {[%emt
00:00:05]} Qa5+ {[%clk 01:42:57]} {[%emt 00:00:05]} 7. Nd2 {[%clk 01:42:48]}
{[%emt 00:00:24]} e6 {[%clk 01:43:21]} {[%emt 00:00:06]} 8. Ngf3 {[%clk
01:42:46]} {[%emt 00:00:33]} Nh6 {[%clk 01:43:45]} {[%emt 00:00:07]} 9. O-O
{[%clk 01:42:38]} {[%emt 00:00:37]} Nf5 {[%clk 01:44:09]} {[%emt 00:00:06]} 10.
Nb3 {[%clk 01:43:00]} {[%emt 00:00:08]} Qb5 {[%clk 01:44:33]} {[%emt 00:00:06]}
11. Qd1 {[%clk 01:35:56]} {[%emt 00:07:34]} c5 {[%clk 01:44:46]} {[%emt
00:00:17]} 12. a4 {[%clk 01:33:45]} {[%emt 00:02:42]} Qb6 {[%clk 01:45:10]}
{[%emt 00:00:06]} 13. dxc5 {[%clk 01:17:56]} {[%emt 00:16:19]} Bxc5 {[%clk
01:45:35]} {[%emt 00:00:05]} 14. a5 {[%clk 01:18:19]} {[%emt 00:00:06]} Qb5
{[%clk 01:45:59]} {[%emt 00:00:06]} 15. Nxc5 {[%clk 00:57:28]} {[%emt
00:21:22]} Qxc5 {[%clk 01:46:24]} {[%emt 00:00:04]} 16. b3 {[%clk 00:47:51]}
{[%emt 00:10:07]} Nc6 {[%clk 01:46:22]} {[%emt 00:00:33]} 17. Ra4 {[%clk
00:42:23]} {[%emt 00:05:58]} O-O-O {[%clk 01:21:20]} {[%emt 00:25:31]} 18. Bg5
{[%clk 00:27:28]} {[%emt 00:15:26]} Rd7 {[%clk 01:18:40]} {[%emt 00:03:10]} 19.
a6 {[%clk 00:25:12]} {[%emt 00:02:46]} b5 {[%clk 01:15:22]} {[%emt 00:03:48]}
20. Rf4 {[%clk 00:24:54]} {[%emt 00:00:47]} Kb8 {[%clk 01:05:15]} {[%emt
00:10:37]} 21. Qd3 {[%clk 00:22:49]} {[%emt 00:02:35]} Rc8 {[%clk 01:00:37]}
{[%emt 00:05:09]} 22. Rxf5 {[%clk 00:20:05]} {[%emt 00:03:14]} exf5 {[%clk
00:51:14]} {[%emt 00:09:53]} 23. Qxf5 {[%clk 00:20:30]} {[%emt 00:00:04]} Rdc7
{[%clk 00:48:52]} {[%emt 00:02:53]} 24. e6 {[%clk 00:17:19]} {[%emt 00:03:40]}
fxe6 {[%clk 00:48:37]} {[%emt 00:00:46]} 25. Qxe6 {[%clk 00:17:45]} {[%emt
00:00:04]} Nd8 {[%clk 00:44:46]} {[%emt 00:04:21]} 26. Qg6 {[%clk 00:17:30]}
{[%emt 00:00:44]} Qxc2 {[%clk 00:44:17]} {[%emt 00:00:59]} 27. Qxc2 {[%clk
00:15:31]} {[%emt 00:02:29]} Rxc2 {[%clk 00:44:43]} {[%emt 00:00:04]} 28. Nd4
{[%clk 00:15:57]} {[%emt 00:00:04]} R2c3 {[%clk 00:40:48]} {[%emt 00:04:25]} 29.
Re1 {[%clk 00:11:12]} {[%emt 00:05:15]} Ka8 {[%clk 00:37:17]} {[%emt 00:04:02]}
30. Bf4 {[%clk 00:06:28]} {[%emt 00:05:13]} R3c5 {[%clk 00:35:55]} {[%emt
00:01:52]} 31. Re8 {[%clk 00:04:18]} {[%emt 00:02:40]} b4 {[%clk 00:36:20]}
{[%emt 00:00:06]} 32. f3 {[%clk 00:04:03]} {[%emt 00:00:44]} Nf7 {[%clk
00:34:24]} {[%emt 00:02:27]} 33. Re7 {[%clk 00:04:25]} {[%emt 00:00:06]} Nd8
{[%clk 00:34:51]} {[%emt 00:00:04]} 34. Rxg7 {[%clk 00:03:51]} {[%emt
00:01:04]} Ra5 {[%clk 00:23:12]} {[%emt 00:12:10]} 35. Rg6 {[%clk 00:04:16]}
{[%emt 00:00:05]} Rac5 {[%clk 00:23:39]} {[%emt 00:00:03]} 36. Rg8 {[%clk
00:02:11]} {[%emt 00:02:33]} Nf7 {[%clk 00:23:39]} {[%emt 00:00:31]} 37. Rg7
{[%clk 00:02:33]} {[%emt 00:00:08]} Nd8 {[%clk 00:24:08]} {[%emt 00:00:02]} 38.
Kh2 {[%clk 00:02:43]} {[%emt 00:00:19]} Ra5 {[%clk 00:21:59]} {[%emt 00:02:40]}
39. Rg6 {[%clk 00:03:07]} {[%emt 00:00:05]} Rac5 {[%clk 00:22:23]} {[%emt
00:00:08]} 40. Rf6 {[%clk 00:02:08]} {[%emt 00:01:27]} Nc6 {[%clk 00:18:46]}
{[%emt 00:04:07]} 41. Ne6 {[%clk 00:02:23]} {[%emt 00:00:15]} Rc2 {[%clk
00:19:13]} {[%emt 00:00:04]} 42. Nc7+ {[%clk 00:02:08]} {[%emt 00:00:44]} Kb8
{[%clk 00:19:42]} {[%emt 00:00:02]} 43. Nxd5+ {[%clk 00:02:30]} {[%emt
00:00:07]} Ka8 {[%clk 00:20:11]} 44. Nc7+ {[%clk 00:35:29]} {[%emt 00:17:31]}
Kb8 {[%clk 01:10:41]} {[%emt 00:00:01]} 45. Nb5+ {[%clk 00:35:43]} {[%emt
00:00:16]} Ka8 {[%clk 01:11:08]} {[%emt 00:00:02]} 46. Rf7 {[%clk 00:35:37]}
{[%emt 00:00:35]} Ra2 {[%clk 01:08:16]} {[%emt 00:03:24]} 47. Nc7+ {[%clk
00:33:04]} {[%emt 00:03:02]} Kb8 {[%clk 01:08:44]} {[%emt 00:00:02]} 48. Nd5+
{[%clk 00:16:05]} {[%emt 00:17:28]} Ka8 {[%clk 01:09:11]} {[%emt 00:00:04]} 49.
Be3 {[%clk 00:16:20]} {[%emt 00:00:14]} Rg8 {[%clk 00:57:16]} {[%emt 00:12:27]}
50. Rxa7+ {[%clk 00:15:59]} {[%emt 00:00:50]} 1-0

[Event "FIDE Grand Swiss 2023"]
[Site "Villa Marina, Douglas, Isle of Man, Isle Of Man"]
[Date "2023.10.29"]
[Round "5.49"]
[White "Fier, Alexandr"]
[Black "Van Foreest, Jorden"]
[Result "0-1"]
[TimeControl "40/90 + 30 + 30s/move"]
[WhiteFideId "2107139"]
[BlackFideId "1039784"]
[WhiteElo "2574"]
[BlackElo "2707"]

1. d4 {[%clk 01:40:57]} {[%emt 00:00:01]} Nf6 {[%clk 01:40:22]} {[%emt
00:00:38]} 2. c4 {[%clk 01:41:23]} {[%emt 00:00:04]} g6 {[%clk 01:40:10]}
{[%emt 00:00:43]} 3. Nc3 {[%clk 01:41:49]} {[%emt 00:00:04]} Bg7 {[%clk
01:39:57]} {[%emt 00:00:42]} 4. e4 {[%clk 01:42:14]} {[%emt 00:00:06]} d6
{[%clk 01:39:55]} {[%emt 00:00:32]} 5. Be2 {[%clk 01:42:40]} {[%emt 00:00:04]}
O-O {[%clk 01:39:40]} {[%emt 00:00:45]} 6. h4 {[%clk 01:43:06]} {[%emt
00:00:03]} h5 {[%clk 01:39:00]} {[%emt 00:01:10]} 7. Bg5 {[%clk 01:41:10]}
{[%emt 00:02:27]} Na6 {[%clk 01:36:10]} {[%emt 00:03:19]} 8. f3 {[%clk
01:37:19]} {[%emt 00:04:21]} c6 {[%clk 01:35:10]} {[%emt 00:01:31]} 9. Qd2
{[%clk 01:37:19]} {[%emt 00:00:30]} Nc7 {[%clk 01:29:33]} {[%emt 00:06:07]} 10.
Rd1 {[%clk 01:34:56]} {[%emt 00:02:53]} a6 {[%clk 01:24:11]} {[%emt 00:05:52]}
11. Nh3 {[%clk 01:31:44]} {[%emt 00:03:42]} Bxh3 {[%clk 01:22:07]} {[%emt
00:02:34]} 12. Rxh3 {[%clk 01:32:09]} {[%emt 00:00:04]} Nd7 {[%clk 01:15:09]}
{[%emt 00:07:29]} 13. Bh6 {[%clk 01:22:40]} {[%emt 00:09:59]} b5 {[%clk
00:54:50]} {[%emt 00:20:49]} 14. Bxg7 {[%clk 01:13:26]} {[%emt 00:09:44]} Kxg7
{[%clk 00:55:12]} {[%emt 00:00:07]} 15. c5 {[%clk 01:07:59]} {[%emt 00:05:58]}
Qe8 {[%clk 00:49:45]} {[%emt 00:05:57]} 16. f4 {[%clk 01:06:44]} {[%emt
00:01:45]} Rd8 {[%clk 00:44:57]} {[%emt 00:05:17]} 17. b4 {[%clk 01:02:47]}
{[%emt 00:04:28]} a5 {[%clk 00:45:08]} {[%emt 00:00:19]} 18. a3 {[%clk
01:02:22]} {[%emt 00:00:56]} axb4 {[%clk 00:43:34]} {[%emt 00:02:04]} 19. axb4
{[%clk 01:02:45]} {[%emt 00:00:06]} dxc5 {[%clk 00:43:21]} {[%emt 00:00:42]} 20.
dxc5 {[%clk 01:01:18]} {[%emt 00:01:58]} Nf6 {[%clk 00:43:14]} {[%emt
00:00:36]} 21. Rd3 {[%clk 00:56:51]} {[%emt 00:04:58]} Rxd3 {[%clk 00:42:57]}
{[%emt 00:00:47]} 22. Qxd3 {[%clk 00:57:18]} {[%emt 00:00:03]} Qa8 {[%clk
00:41:59]} {[%emt 00:01:28]} 23. f5 {[%clk 00:45:29]} {[%emt 00:12:19]} e5
{[%clk 00:38:44]} {[%emt 00:03:45]} 24. fxg6 {[%clk 00:43:11]} {[%emt
00:02:48]} fxg6 {[%clk 00:36:16]} {[%emt 00:02:57]} 25. Qd6 {[%clk 00:42:24]}
{[%emt 00:01:17]} Rf7 {[%clk 00:35:32]} {[%emt 00:01:14]} 26. Qxe5 {[%clk
00:42:50]} {[%emt 00:00:05]} Qa3 {[%clk 00:35:45]} {[%emt 00:00:17]} 27. Rd3
{[%clk 00:33:44]} {[%emt 00:09:36]} Qa1+ {[%clk 00:32:31]} {[%emt 00:03:44]} 28.
Bd1 {[%clk 00:33:06]} {[%emt 00:01:09]} Na6 {[%clk 00:28:33]} {[%emt 00:04:27]}
29. Rd2 {[%clk 00:26:06]} {[%emt 00:07:30]} Nxb4 {[%clk 00:24:23]} {[%emt
00:04:40]} 30. Qd4 {[%clk 00:26:32]} {[%emt 00:00:04]} Qa5 {[%clk 00:17:50]}
{[%emt 00:07:03]} 31. Rf2 {[%clk 00:25:52]} {[%emt 00:01:10]} Na6 {[%clk
00:12:50]} {[%emt 00:05:31]} 32. e5 {[%clk 00:16:42]} {[%emt 00:09:39]} Nd5
{[%clk 00:12:24]} {[%emt 00:00:55]} 33. e6+ {[%clk 00:17:02]} {[%emt 00:00:10]}
Rf6 {[%clk 00:12:39]} {[%emt 00:00:15]} 34. Rxf6 {[%clk 00:12:23]} {[%emt
00:05:10]} Nxf6 {[%clk 00:13:03]} {[%emt 00:00:06]} 35. e7 {[%clk 00:12:44]}
{[%emt 00:00:09]} Nc7 {[%clk 00:12:44]} {[%emt 00:00:49]} 36. Kf2 {[%clk
00:10:41]} {[%emt 00:02:34]} Qa1 {[%clk 00:10:57]} {[%emt 00:02:17]} 37. Ne2
{[%clk 00:05:15]} {[%emt 00:05:55]} Qa2 {[%clk 00:10:34]} {[%emt 00:00:53]} 38.
Qe5 {[%clk 00:04:18]} {[%emt 00:01:27]} Nce8 {[%clk 00:09:35]} {[%emt
00:01:29]} 39. Kg3 {[%clk 00:02:18]} {[%emt 00:02:31]} Qa3+ {[%clk 00:06:42]}
{[%emt 00:03:23]} 40. Kh2 {[%clk 00:01:04]} {[%emt 00:01:43]} Qe3 {[%clk
00:04:59]} {[%emt 00:02:11]} 41. Qxe3 {[%clk 00:44:11]} {[%emt 00:07:24]} Ng4+
{[%clk 00:55:17]} {[%emt 00:00:12]} 42. Kg3 {[%clk 00:44:39]} {[%emt 00:00:03]}
Nxe3 {[%clk 00:55:40]} {[%emt 00:00:06]} 43. Bb3 {[%clk 00:45:08]} {[%emt
00:00:01]} Nf5+ {[%clk 00:55:29]} {[%emt 00:00:42]} 44. Kf4 {[%clk 00:45:35]}
{[%emt 00:00:03]} Kf6 {[%clk 00:55:35]} {[%emt 00:00:24]} 45. g3 {[%clk
00:45:14]} {[%emt 00:00:51]} Nc7 {[%clk 00:53:19]} {[%emt 00:02:45]} 46. e8=B
{[%clk 00:42:11]} {[%emt 00:03:34]} Nxe8 {[%clk 00:53:38]} {[%emt 00:00:11]} 47.
Nc3 {[%clk 00:42:39]} {[%emt 00:00:02]} Nd4 {[%clk 00:49:23]} {[%emt 00:04:44]}
48. Ne4+ {[%clk 00:40:43]} {[%emt 00:02:27]} Ke7 {[%clk 00:48:52]} {[%emt
00:01:01]} 49. Ba2 {[%clk 00:39:49]} {[%emt 00:01:25]} Nf6 {[%clk 00:47:48]}
{[%emt 00:01:32]} 50. Nd2 {[%clk 00:40:15]} {[%emt 00:00:05]} Ne6+ {[%clk
00:44:56]} {[%emt 00:03:22]} 51. Bxe6 {[%clk 00:40:22]} {[%emt 00:00:23]} Kxe6
{[%clk 00:45:22]} {[%emt 00:00:04]} 52. Kg5 {[%clk 00:40:49]} {[%emt 00:00:03]}
Ke5 {[%clk 00:37:47]} {[%emt 00:08:05]} 53. Kxg6 {[%clk 00:34:51]} {[%emt
00:06:27]} Ne4 {[%clk 00:38:01]} {[%emt 00:00:16]} 54. Nf3+ {[%clk 00:35:17]}
{[%emt 00:00:04]} Kd5 {[%clk 00:37:53]} {[%emt 00:00:37]} 55. g4 {[%clk
00:35:42]} {[%emt 00:00:07]} hxg4 {[%clk 00:36:12]} {[%emt 00:02:11]} 56. Ne1
{[%clk 00:35:58]} {[%emt 00:00:14]} b4 {[%clk 00:35:34]} {[%emt 00:01:07]} 57.
h5 {[%clk 00:36:26]} {[%emt 00:00:03]} b3 {[%clk 00:35:14]} {[%emt 00:00:49]}
58. Nd3 {[%clk 00:36:54]} {[%emt 00:00:02]} g3 {[%clk 00:29:50]} {[%emt
00:05:55]} 59. h6 {[%clk 00:37:18]} {[%emt 00:00:05]} b2 {[%clk 00:30:03]}
{[%emt 00:00:18]} 60. h7 {[%clk 00:37:43]} {[%emt 00:00:05]} b1=Q {[%clk
00:30:19]} {[%emt 00:00:14]} 61. Nf4+ {[%clk 00:38:11]} {[%emt 00:00:02]} Ke5
{[%clk 00:30:19]} {[%emt 00:00:29]} 62. h8=Q+ {[%clk 00:38:37]} {[%emt
00:00:04]} Kxf4 {[%clk 00:30:00]} {[%emt 00:00:50]} 63. Qb8+ {[%clk 00:39:04]}
{[%emt 00:00:03]} Qxb8 {[%clk 00:30:20]} 0-1